lending/lending_fUSD_20240809
["ID","MTS","AMOUNT","RATE_DAILY","PERIOD"]
[334570889,1723241456113,-500.0,0.00023073,2]
[334570890,1723241456122,-3400.0,0.00023077,2]
[334570891,1723241456132,-500.0,0.00023081,2]
[334570892,1723241456140,-303.17237552,0.00023085,4]
[334570893,1723241456149,-791.10675434,0.00023094,4]
[334570894,1723241456158,-196.83442498,0.00023094,4]
[334570895,1723241456168,-150.0,0.0002315,4]
[334570896,1723241456177,-150.0,0.0002315,4]
[334570897,1723241456187,-150.0,0.0002315,4]
[334570898,1723241456196,-167.10539186,0.0002317,2]
[334570899,1723241456206,-150.0,0.00023188,4]
[334570900,1723241456215,-600.0,0.00023195,2]
[334570901,1723241456224,-180.0,0.00023205,2]
[334570902,1723241456234,-791.10675434,0.00023206,4]
[334570903,1723241456243,-196.83442498,0.00023206,4]
[334570904,1723241456253,-600.0,0.00023222,2]
[334570905,1723241456262,-300.0,0.00023234,11]
[334570906,1723241456272,-600.0,0.00023249,2]
[334570907,1723241456281,-152.0,0.0002325,6]
[334570908,1723241456291,-1000.0,0.00023258,2]
[334570909,1723241456300,-150.0,0.00023259,4]
[334570910,1723241456310,-1000.0,0.00023265,2]
[334570911,1723241456320,-500.0,0.00023277,2]
[334570912,1723241456329,-379.98,0.00023288,2]
[334570913,1723241456339,-380.0,0.00023288,2]
[334570914,1723241456349,-380.0,0.00023288,2]
[334570915,1723241456360,-380.0,0.00023288,2]
[334570916,1723241456370,-380.0,0.00023288,2]
[334570917,1723241456379,-380.0,0.00023288,2]
[334570918,1723241456389,-380.0,0.00023288,2]
[334570919,1723241456398,-398.48,0.00023288,2]
[334570920,1723241456408,-380.0,0.00023288,2]
[334570921,1723241456418,-173.0,0.00023288,2]
[334570922,1723241456427,-1000.0,0.000233,2]
[334570923,1723241456437,-600.0,0.00023308,2]
[334570924,1723241456448,-600.0,0.00023312,2]
[334570925,1723241456457,-791.10675434,0.00023318,4]
[334570926,1723241456466,-196.83442498,0.00023318,4]
[334570927,1723241456476,-600.0,0.00023346,2]
[334570928,1723241456486,-600.0,0.00023346,2]
[334570929,1723241456496,-800.0,0.00023356,2]
[334570930,1723241456506,-3200.0,0.00023356,2]
[334570931,1723241456515,-150.0,0.00023414,4]
[334570932,1723241456525,-791.10675434,0.0002343,4]
[334570933,1723241456535,-196.83442498,0.0002343,4]
[334570934,1723241456544,-3400.0,0.00023442,2]
[334570935,1723241456554,-223.0,0.0002346,2]
[334570936,1723241456564,-200.0,0.0002346,2]
[334570937,1723241456574,-223.0,0.0002346,2]
[334570938,1723241456584,-224.0,0.0002346,2]
[334570939,1723241456594,-150.0,0.00023476,4]
[334570940,1723241456604,-248.82965052,0.00023488,2]
[334570941,1723241456616,-500.0,0.00023497,2]
[334570942,1723241456625,-600.0,0.00023512,2]
[334570943,1723241456636,-500.0,0.00023514,2]
[334570944,1723241456646,-1935.27435808,0.0002354,2]
[334570945,1723241456655,-791.10675434,0.00023542,4]
[334570946,1723241456666,-196.83442498,0.00023542,4]
[334570947,1723241456675,-2717.24014392,0.00023555,2]
[334570948,1723241456685,-1800.0,0.000236,2]
[334570949,1723241456695,-150.0,0.00023641,4]
[334570950,1723241456705,-3400.0,0.00023643,2]
[334570951,1723241456715,-150.0,0.00023648,2]
[334570952,1723241456725,-791.10675434,0.00023655,4]
[334570953,1723241456734,-196.83442498,0.00023655,4]
[334570954,1723241456744,-1800.0,0.00023666,2]
[334570955,1723241456755,-166.79266455,0.00023674,2]
[334570956,1723241456765,-150.0,0.00023694,4]
[334570957,1723241456776,-500.0,0.00023698,2]
[334570958,1723241456785,-391.26,0.00023704,2]
[334570959,1723241456795,-500.0,0.00023716,2]
[334570960,1723241456805,-500.0,0.00023753,2]
[334570961,1723241456925,-151.0,0.00023759,2]
[334570962,1723241456935,-500.0,0.00023759,2]
[334570963,1723241456945,-791.10675434,0.00023767,4]
[334570964,1723241456955,-196.83442498,0.00023767,4]
[334570965,1723241456964,-150.0,0.00023767,4]
[334570966,1723241456975,-600.0,0.00023781,2]
[334570967,1723241456986,-3200.0,0.00023806,2]
[334570968,1723241456996,-600.0,0.00023819,2]
[334570969,1723241457006,-600.0,0.00023822,2]
[334570970,1723241457015,-150.0,0.00023867,4]
[334570971,1723241457026,-1268.59509223,0.00023873,2]
[334570972,1723241457035,-600.0,0.00023877,2]
[334570973,1723241457046,-791.10675434,0.00023879,4]
[334570974,1723241457056,-196.83442498,0.00023879,4]
[334570975,1723241457065,-1000.0,0.00023897,2]
[334570976,1723241457075,-2026.68449,0.00023899,2]
[334570977,1723241457084,-2000.0,0.00023904,2]
[334570978,1723241457094,-1700.0,0.00023904,2]
[334570979,1723241457104,-3100.0,0.00023904,2]
[334570980,1723241457115,-3000.0,0.00023904,2]
[334570981,1723241457125,-150.0,0.00023912,4]
[334570982,1723241457135,-500.0,0.00023932,2]
[334570983,1723241457144,-500.0,0.0002396,2]
[334570984,1723241457155,-600.0,0.00023989,2]
[334570985,1723241457165,-791.10675434,0.00023991,4]
[334570986,1723241457174,-196.83442498,0.00023991,4]
[334570987,1723241457184,-235.76,0.00023999,5]
[334570988,1723241457193,-235.76,0.00023999,5]
[334570989,1723241457203,-795.96,0.00023999,5]
[334570990,1723241457213,-795.96,0.00023999,5]
[334570991,1723241457223,-617.1043103,0.00024,2]
[334570992,1723241457234,-1003.2,0.00024,2]
[334570993,1723241457244,-20966.0,0.00024,2]
[334570994,1723241457254,-1001.53,0.00024,2]
[334570995,1723241457264,-3000.0,0.00024,2]
[334570996,1723241457274,-3000.0,0.00024,2]
[334570997,1723241457284,-3000.0,0.00024,2]
[334570998,1723241457294,-3000.0,0.00024,2]
[334570999,1723241457304,-3012.05,0.00024,2]
[334571000,1723241457314,-199.0,0.00024,2]
[334571001,1723241457324,-297.17740872,0.00024,2]
[334571002,1723241457334,-500.0,0.00024,2]
[334571003,1723241457345,-291.31141525,0.00024,4]
[334571004,1723241457355,-71658.28255063,0.00024,3]
[334571005,1723241457540,-1279.97005618,0.00024,3]
[334571006,1723241457736,-1118.63,0.00012529,2]
[334571007,1723241457747,-1118.63,0.00012529,2]
[334571008,1723241457757,-1118.63,0.00012529,2]
[334571009,1723241457767,-1118.63,0.00012529,2]
[334571010,1723241457777,-1118.63,0.00012529,2]
[334571011,1723241457787,-1118.63,0.00012529,2]
[334571012,1723241457797,-1118.63,0.00012529,2]
[334571013,1723241457806,-1118.63,0.00012529,2]
[334571014,1723241457817,-1118.63,0.00012529,2]
[334571015,1723241457827,-1118.63,0.00012529,2]
[334571016,1723241457837,-686.84894999,0.00014261,2]
[334571017,1723241457847,-723.23511172,0.00014261,2]
[334571018,1723241457860,-155.0,0.00014579,2]
[334571019,1723241457869,-203.14083137,0.00014667,2]
[334571020,1723241457879,-155.0,0.00019451,2]
[334571021,1723241457889,-9831.81837573,0.00024,3]
[334571022,1723241457905,-13845.770288,0.00024,3]
[334571023,1723241458271,-1118.63,0.00012529,2]
[334571024,1723241458281,-32079.29901073,0.00024,3]
[334571025,1723241490720,150.0,0.00024612,120]
[334571026,1723241671267,150.0,0.00024641,120]
[334571029,1723242361747,-150.0,0.00025319,120]
[334571030,1723242361776,-400.0,0.00025707,120]
[334571031,1723242361814,-150.0,0.00025995,120]
[334571032,1723242361839,-150.0,0.00026015,120]
[334571033,1723242361868,-1000.0,0.00026849,120]
[334571038,1723242439815,-625.1137,9.9e-05,2]
[334571039,1723242439836,-150.0,0.00010999,2]
[334571040,1723242439862,-28599.96708542,0.00011,2]
[334571041,1723242439887,-52873.91921458,0.00011,2]
[334571043,1723242511305,150.0,0.00024017,120]
[334571044,1723242526625,393.5430555,0.00027,120]
[334571054,1723242631896,-210.88572167,0.0001,2]
[334571055,1723242631906,-174.83539434,0.000109,2]
[334571056,1723242631915,-167.10539186,0.000109,2]
[334571057,1723242631925,-300.0,0.00010999,2]
[334571058,1723242631934,-150.0,0.00010999,2]
[334571059,1723242631943,-1573.206132,0.00011,2]
[334571060,1723242631952,-14299.98354272,0.00011,2]
[334571061,1723242631962,-627483.98381771,0.00011,2]
[334571063,1723242637975,-703.20536157,0.00011,2]
[334571064,1723242637987,-30687.70725279,0.00011,2]
[334571065,1723242637999,-20046.88647575,0.00011,2]
[334571066,1723242638011,-3035.058,0.00011,2]
[334571067,1723242638032,-50448.83835652,0.00011,2]
[334571068,1723242638044,-664.7658,0.00011,2]
[334571069,1723242638055,-522.95955266,0.00011,2]
[334571070,1723242638314,-1507.57772365,0.00011,2]
[334571071,1723242638326,-435.35854429,0.00011,2]
[334571072,1723242638338,-685.98090997,0.00011,2]
[334571073,1723242638354,-7410.89783384,0.00011,2]
[334571074,1723242638367,-683.481244,0.00011,2]
[334571076,1723242638379,-2569328.29380968,0.00011,2]
[334571083,1723242640075,-958.32081716,0.00011,2]
[334571084,1723242640087,-2428.5107306,0.00011,2]
[334571085,1723242640199,-31971.56757775,0.00011,2]
[334571086,1723242640211,-3470.13415581,0.00011,2]
[334571089,1723242642978,-3601.17829232,0.00011,2]
[334571090,1723242643089,-1321.69127506,0.00011,2]
[334571091,1723242643200,-2301.288471,0.00011,2]
[334571108,1723242646264,-0.1377583,0.0001,2]
[334571109,1723242646343,-549.8622417,0.0001,2]
[334571110,1723242646355,-32545.86627325,0.00011,2]
[334571115,1723242930743,150.0,0.00025119,120]
[334571123,1723242990723,150.0,0.00024434,120]
[334571126,1723243050713,150.0,0.00026613,120]
[334571132,1723243170843,150.0,0.00026951,120]
[334571133,1723243230718,150.0,0.00026308,120]
[334571134,1723243290756,150.0,0.00025662,120]
[334571136,1723243410761,150.0,0.00025875,120]
[334571137,1723243471280,150.0,0.00026688,120]
[334571141,1723243611270,389.99,9.245e-05,2]
[334571142,1723243653515,754.0,9.245e-05,2]
[334571143,1723243678262,227.71036735,9.245e-05,2]
[334571144,1723243681240,155.0,9.245e-05,2]
[334571145,1723243682950,485.47880185,9.245e-05,2]
[334571146,1723243683152,7577.72096623,9.245e-05,2]
[334571147,1723243687814,1284.86660241,9.245e-05,2]
[334571148,1723243689628,291.36870266,9.245e-05,2]
[334571149,1723243694913,693.09243413,9.245e-05,2]
[334571150,1723243699158,759.9667326,9.245e-05,2]
[334571151,1723243700866,871.55601316,9.245e-05,2]
[334571152,1723243702578,20388.48019643,9.245e-05,2]
[334571153,1723243705746,425.83516653,9.245e-05,2]
[334571154,1723243769135,7577.72096623,9.245e-05,2]
[334571155,1723243782751,1284.0269295,9.245e-05,2]
[334571156,1723243808585,3249.51616514,9.245e-05,2]
[334571157,1723243817605,425.76373453,9.245e-05,2]
[334571158,1723243818960,693.71418722,9.245e-05,2]
[334571173,1723243831997,-150.0,0.00010877,2]
[334571175,1723243832007,-150.0,0.00010899,2]
[334571177,1723243832016,-172.22398976,0.000109,2]
[334571178,1723243832025,-1721.4063,0.000109,2]
[334571180,1723243832034,-287.57391013,0.000109,2]
[334571182,1723243832047,-767.68435215,0.000109,2]
[334571184,1723243832058,-555.90330277,0.000109,2]
[334571185,1723243832069,-1626.11563495,0.000109,2]
[334571186,1723243832078,-239.576858,0.000109,2]
[334571187,1723243832090,-760.423142,0.000109,2]
[334571188,1723243832101,-328.1519,0.000109,2]
[334571189,1723243832111,-1496.53425038,0.000109,2]
[334571190,1723243832124,-327.85685687,0.000109,2]
[334571191,1723243832135,-872.67905712,0.000109,2]
[334571192,1723243832147,-6558.09753364,0.000109,2]
[334571193,1723243832158,-10863.63860199,0.000109,2]
[334571194,1723243832169,-169.84462218,0.000109,2]
[334571195,1723243832179,-1000.0,0.000109,2]
[334571196,1723243832188,-722.67823329,0.000109,2]
[334571197,1723243832197,-313.64751735,0.000109,2]
[334571198,1723243832208,-500.0,0.00010999,2]
[334571199,1723243832219,-500.0,0.00010999,2]
[334571200,1723243832228,-500.0,0.00010999,2]
[334571201,1723243832237,-500.0,0.00010999,2]
[334571202,1723243832247,-364.81,0.00010999,2]
[334571203,1723243832256,-500.0,0.00010999,2]
[334571204,1723243832266,-500.0,0.00010999,2]
[334571205,1723243832275,-500.0,0.00010999,2]
[334571206,1723243832284,-500.0,0.00010999,2]
[334571207,1723243832294,-360.77,0.00010999,2]
[334571208,1723243832304,-13923.24815982,0.00011,2]
[334571210,1723243832313,-452831.06351869,0.00011,2]
[334571212,1723243832324,-1635.94847803,0.00011,2]
[334571213,1723243832340,-298.3,0.00011,2]
[334571214,1723243832351,-341.48088377,0.00011,2]
[334571215,1723243832362,-25390.0,0.00011,2]
[334571216,1723243832385,-1549.74687682,0.00011,2]
[334571217,1723243832396,-5470.3656739,0.00011,2]
[334571218,1723243832407,-13383.1972599,0.00011,2]
[334571219,1723243832418,-561.51132701,0.00011,2]
[334571221,1723243838214,-8179.99999998,0.00011,2]
[334571222,1723243838292,-614.60712979,0.00011,2]
[334571223,1723243838351,-1432.3301818,0.00011,2]
[334571224,1723243838544,-921.04196052,0.00011,2]
[334571225,1723243838558,-1107.2408442,0.00011,2]
[334571248,1723243840197,-4592.8,0.00011,2]
[334571249,1723243840210,-669.21960628,0.00011,2]
[334571250,1723243840223,-411.00317561,0.00011,2]
[334571251,1723243843021,-2490.75,0.00011,2]
[334571253,1723243843095,-892.61865323,0.00011,2]
[334571254,1723243843182,-6315.3454475,0.00011,2]
[334571255,1723243843194,-1620.40557737,0.00011,2]
[334571256,1723243843205,-2028.24217741,0.00011,2]
[334571257,1723243843216,-11222.92795268,0.00011,2]
[334571269,1723243843330,-1317.20668066,0.00011,2]
[334571301,1723243844473,-8832.28605,0.00011,2]
[334571302,1723243844493,-401.21609692,0.00011,2]
[334571303,1723243844505,-3313.60911296,0.00011,2]
[334571304,1723243844529,-1304.4,0.00011,2]
[334571305,1723243844540,-526.02,0.00011,2]
[334571306,1723243844553,-3029.65,0.00011,2]
[334571307,1723243844580,-16848.68960433,0.00011,2]
[334571309,1723243846433,-3912.18475505,0.00011,2]
[334571310,1723243846584,-2807.81747002,0.00011,2]
[334571311,1723243846595,-1168.77872412,0.00011,2]
[334571313,1723243863146,1816.0270691,9.245e-05,2]
[334571314,1723243890727,150.0,0.00024599,120]
[334571316,1723243950706,150.0,0.00023979,120]
[334571320,1723244063497,391.76,9.086e-05,2]
[334571321,1723244310720,150.0,0.00025483,120]
[334571324,1723244461623,1500.0,0.00025,60]
[334571325,1723244600444,393.37,8.517e-05,2]
[334571326,1723244731486,150.0,0.0002682,120]
[334571329,1723244910718,150.0,0.00026842,120]
[334571351,1723245038396,-550.0,0.0001,2]
[334571352,1723245038405,-2616.04903559,0.00010096,2]
[334571366,1723245038586,-988.94903612,0.00010096,2]
[334571367,1723245038764,-598.51192829,0.00010096,2]
[334571368,1723245038774,-250.0,0.00010123,2]
[334571369,1723245038783,-165.44,0.00010286,2]
[334571370,1723245038792,-236.55,0.00010288,2]
[334571371,1723245038802,-1000.0,0.00010328,2]
[334571372,1723245038812,-200.0,0.00010367,2]
[334571373,1723245038821,-1298.83,0.0001038,2]
[334571374,1723245038831,-1154.76,0.00010549,2]
[334571375,1723245038841,-697.83,0.00010559,2]
[334571376,1723245038851,-300.0,0.00010626,2]
[334571377,1723245038861,-299.99,0.00010627,2]
[334571378,1723245038870,-173.97,0.00010631,2]
[334571379,1723245038879,-393.37,0.00010781,2]
[334571380,1723245038889,-172.22398976,0.000109,2]
[334571381,1723245038899,-2424.7847,0.000109,2]
[334571382,1723245038909,-271.72401441,0.000109,2]
[334571383,1723245038918,-209.0983449,0.000109,2]
[334571384,1723245038927,-481.78548886,0.000109,2]
[334571385,1723245038937,-499.99,0.00010934,2]
[334571386,1723245038947,-487.54,0.00010959,2]
[334571387,1723245038957,-250.0,0.00010959,2]
[334571388,1723245038967,-7089.64520035,0.00011,2]
[334571389,1723245038977,-44518.96500898,0.00011,2]
[334571390,1723245038994,-2456.04146216,0.00011,2]
[334571391,1723245039006,-2944.34240302,0.00011,2]
[334571392,1723245039017,-9101.3781579,0.00011,2]
[334571393,1723245039030,-8693.51986952,0.00011,2]
[334571394,1723245039040,-1381.24087936,0.00011,2]
[334571395,1723245039051,-3048.91164779,0.00011,2]
[334571396,1723245039064,-33278.88494011,0.00011,2]
[334571419,1723245040418,-28650.73615971,0.00011,2]
[334571420,1723245041467,-520.94,0.00011,2]
[334571421,1723245041480,-840.96512736,0.00011,2]
[334571435,1723245043291,-503.19150413,0.00010626,2]
[334571437,1723245043303,-859.24849587,0.00010626,2]
[334571438,1723245043312,-1129.65891,0.0001089,2]
[334571439,1723245043327,-423.09259413,0.000109,2]
[334571441,1723245043338,-381.4185858,0.000109,2]
[334571442,1723245043351,-325.14773007,0.000109,2]
[334571443,1723245043360,-316.37698243,0.0001091,2]
[334571444,1723245043371,-361.6920653,0.0001091,2]
[334571445,1723245043383,-451.58986227,0.0001091,2]
[334571446,1723245043392,-1129.65891,0.0001093,2]
[334571447,1723245043401,-2945.50815873,0.00011,2]
[334571448,1723245043414,-6400.89541296,0.00011,2]
[334571449,1723245044670,-752.79796392,0.00011,2]
[334571450,1723245044681,-1559.45168708,0.00011,2]
[334571451,1723245044692,-273.88727203,0.00011,2]
[334571452,1723245044705,-1732.275,0.00011,2]
[334571453,1723245044716,-1659.64161471,0.00011,2]
[334571454,1723245044727,-814.55264413,0.00011,2]
[334571455,1723245044746,-922.5063449,0.00011,2]
[334571456,1723245044757,-367.69336575,0.00011,2]
[334571457,1723245044768,-3067.36856786,0.00011,2]
[334571458,1723245044779,-382.12258582,0.00011,2]
[334571459,1723245044791,-8632.87567252,0.00011,2]
[334571460,1723245046422,-900.09,0.0001092,2]
[334571461,1723245046434,-229.56891,0.0001092,2]
[334571462,1723245046443,-5736.98866461,0.00011,2]
[334571463,1723245046455,-1346.35809449,0.00011,2]
[334571464,1723245046466,-8027.63642451,0.00011,2]
[334571465,1723245046478,-718.1047832,0.00011,2]
[334571466,1723245046503,-1661.36023817,0.00011,2]
[334571467,1723245046514,-283.51720375,0.00011,2]
[334571468,1723245046526,-898.99522388,0.00011,2]
[334571469,1723245046538,-34161.23272605,0.00011,2]
[334571470,1723245046551,-2244.9999773,0.00011,2]
[334571471,1723245046586,-7806.3,0.00011,2]
[334571472,1723245046598,-356.88365472,0.00011,2]
[334571473,1723245046610,-416.5696332,0.00011,2]
[334571474,1723245046622,-52333.48844806,0.00011,2]
[334571475,1723245046668,-979.759088,0.00011,2]
[334571476,1723245046680,-300.16333141,0.00011,2]
[334571477,1723245046692,-2007.07929185,0.00011,2]
[334571478,1723245046703,-361.43277495,0.00011,2]
[334571479,1723245046715,-1793.87083348,0.00011,2]
[334571480,1723245046727,-1078.57653798,0.00011,2]
[334571481,1723245046738,-306.42815309,0.00011,2]
[334571484,1723245046754,-1494.82037085,0.00011,2]
[334571485,1723245046765,-882.94760634,0.00011,2]
[334571488,1723245447375,4263.3,9.65e-05,2]
[334571489,1723245511210,150.0,0.00023844,120]
[334571490,1723245539171,63882.5869081,9.65e-05,2]
[334571491,1723245540600,1223.35682624,9.65e-05,2]
[334571492,1723245547388,227.71036735,9.65e-05,2]
[334571493,1723245551924,407.46,8.358e-05,2]
[334571494,1723245609509,693.09243413,8.358e-05,2]
[334571495,1723245613773,188.0,8.358e-05,2]
[334571496,1723245616216,7577.72096623,8.358e-05,2]
[334571497,1723245618740,290.92754573,8.358e-05,2]
[334571498,1723245624724,1268.17340653,8.358e-05,2]
[334571499,1723245626817,1284.86660241,8.358e-05,2]
[334571500,1723245630718,150.0,0.00026108,120]
[334571501,1723245634679,2655.07180159,8.358e-05,2]
[334571502,1723245641612,1223.35682624,8.358e-05,2]
[334571503,1723245649103,1223.35682624,8.358e-05,2]
[334571504,1723245687944,227.71036735,8.358e-05,2]
[334571505,1723245691441,150.0,0.00024748,120]
[334571506,1723245693010,510.58699532,8.358e-05,2]
[334571507,1723245696890,227.71036735,8.358e-05,2]
[334571508,1723245709825,1284.44921673,8.358e-05,2]
[334571509,1723245734220,7577.72096623,8.358e-05,2]
[334571510,1723245750703,150.0,0.00026759,120]
[334571511,1723245837501,2342.84,9.406e-05,2]
[334571512,1723245887728,2631.10754782,9.406e-05,2]
[334571513,1723245892844,827.90804449,9.406e-05,2]
[334571514,1723245896896,227.71036735,9.406e-05,2]
[334571515,1723245900599,867.19331787,9.406e-05,2]
[334571517,1723245973674,159.33,7.466e-05,2]
[334571518,1723245990712,150.0,0.00026937,120]
[334571519,1723245992574,408.93,8.219e-05,2]
[334571520,1723246020918,23900.0,9.325e-05,2]
[334571521,1723246040921,250.0,9.361e-05,2]
[334571522,1723246041849,165.44,9.361e-05,2]
[334571523,1723246111256,150.0,0.00023769,120]
[334571524,1723246124951,558.14,9.388e-05,2]
[334571529,1723246138965,200.0,9.388e-05,2]
[334571530,1723246170870,150.0,0.00024439,120]
[334571531,1723246221824,436.95,9.359e-05,2]
[334571567,1723246231512,-188.85,9.837e-05,2]
[334571569,1723246231522,-177.52,9.968e-05,2]
[334571571,1723246231532,-303.87313893,0.00010131,2]
[334571573,1723246231542,-1257.03046369,0.00010131,2]
[334571574,1723246231552,-226.27,0.00010136,2]
[334571575,1723246231563,-226.27,0.00010138,2]
[334571576,1723246231572,-226.27,0.00010141,2]
[334571577,1723246231582,-226.27,0.00010144,2]
[334571578,1723246231592,-226.27,0.00010146,2]
[334571579,1723246231602,-185.93081693,0.00010149,2]
[334571580,1723246231613,-40.33918307,0.00010149,2]
[334571581,1723246231623,-1667.71,0.00010151,2]
[334571582,1723246231633,-300.0,0.00010151,2]
[334571583,1723246231643,-741.18,0.00010151,2]
[334571584,1723246231653,-226.27,0.00010152,2]
[334571585,1723246231663,-1337.8457495,0.00010152,2]
[334571586,1723246231686,-505.38615579,0.00010152,2]
[334571587,1723246231698,-641.43342479,0.00010152,2]
[334571588,1723246231709,-3334.67466992,0.00010152,2]
[334571589,1723246231719,-499.99,0.00010152,2]
[334571590,1723246231729,-2801.45270852,0.00010152,2]
[334571591,1723246231740,-826.29867666,0.00010152,2]
[334571597,1723246237842,-5761.40861482,0.00010152,2]
[334571598,1723246237854,-226.27,0.00010154,2]
[334571599,1723246237863,-620.76,0.00010154,2]
[334571600,1723246237873,-800.0,0.00010157,2]
[334571602,1723246237882,-226.27,0.00010157,2]
[334571604,1723246237892,-226.27,0.0001016,2]
[334571606,1723246237902,-226.27,0.00010162,2]
[334571608,1723246237911,-226.27,0.00010165,2]
[334571609,1723246237921,-226.27,0.00010167,2]
[334571610,1723246237934,-226.27,0.0001017,2]
[334571611,1723246237943,-226.27,0.00010173,2]
[334571612,1723246237954,-226.27,0.00010175,2]
[334571613,1723246237965,-226.27,0.00010178,2]
[334571614,1723246237976,-226.27,0.00010181,2]
[334571615,1723246237986,-226.27,0.00010183,2]
[334571616,1723246237996,-226.27,0.00010186,2]
[334571617,1723246238006,-408.93,0.00010442,2]
[334571618,1723246238016,-153.84,0.00010536,2]
[334571619,1723246238025,-200.0,0.00010675,2]
[334571620,1723246238036,-244.55161296,0.00010899,2]
[334571621,1723246238048,-500.0,0.000109,2]
[334571622,1723246238058,-726.912,0.000109,2]
[334571623,1723246238069,-90568.24636786,0.000109,2]
[334571624,1723246238090,-126558.12780602,0.000109,2]
[334571625,1723246238102,-284.16954793,0.000109,2]
[334571626,1723246238207,-833.22584288,0.000109,2]
[334571627,1723246239585,-15336.7279,9.738e-05,2]
[334571628,1723246239595,-24444.67383531,0.000109,2]
[334571629,1723246239605,-172.22398976,0.000109,2]
[334571630,1723246239615,-219.42516069,0.000109,2]
[334571631,1723246239627,-2053.05735365,0.000109,2]
[334571632,1723246239890,-409.83248566,0.000109,2]
[334571633,1723246239899,-500.0,0.00010958,2]
[334571634,1723246239909,-500.0,0.00010958,2]
[334571635,1723246239918,-500.0,0.00010958,2]
[334571636,1723246239927,-218.42689724,0.00010958,2]
[334571637,1723246239939,-281.57310276,0.00010958,2]
[334571638,1723246239949,-332.42820105,0.00010958,2]
[334571639,1723246239960,-167.57179895,0.00010958,2]
[334571640,1723246239969,-348.09320105,0.00010958,2]
[334571641,1723246239981,-151.90679895,0.00010958,2]
[334571642,1723246239992,-500.0,0.00010958,2]
[334571643,1723246240002,-500.0,0.00010958,2]
[334571644,1723246240011,-500.0,0.00010958,2]
[334571645,1723246240022,-379.31443286,0.00010958,2]
[334571646,1723246240032,-250.0,0.00010959,2]
[334571647,1723246240041,-748.05249019,0.00010999,3]
[334571649,1723246242517,-369.12270208,0.00010999,3]
[334571650,1723246242529,-6.25358639,0.00010999,3]
[334571651,1723246242539,-500.0,0.00010999,2]
[334571652,1723246242548,-500.0,0.00010999,2]
[334571653,1723246242557,-128.06641355,0.00010999,2]
[334571654,1723246242571,-371.93358645,0.00010999,2]
[334571655,1723246242580,-500.0,0.00010999,2]
[334571656,1723246242589,-40.51641355,0.00010999,2]
[334571657,1723246242610,-477.8592102,0.00010999,2]
[334571658,1723246242619,-500.0,0.00010999,2]
[334571659,1723246242628,-500.0,0.00010999,2]
[334571660,1723246242637,-500.0,0.00010999,2]
[334571661,1723246242646,-500.0,0.00010999,2]
[334571662,1723246242656,-500.0,0.00010999,2]
[334571663,1723246242665,-500.0,0.00010999,2]
[334571664,1723246242675,-500.0,0.00010999,2]
[334571665,1723246242684,-500.0,0.00010999,2]
[334571666,1723246242693,-500.0,0.00010999,2]
[334571667,1723246242703,-500.0,0.00010999,2]
[334571668,1723246242712,-500.0,0.00010999,2]
[334571669,1723246242722,-500.0,0.00010999,2]
[334571670,1723246242731,-500.0,0.00010999,2]
[334571671,1723246242740,-500.0,0.00010999,2]
[334571672,1723246242749,-500.0,0.00010999,2]
[334571673,1723246242759,-500.0,0.00010999,2]
[334571674,1723246242768,-619.56267326,0.00010999,2]
[334571675,1723246242778,-500.0,0.00010999,2]
[334571676,1723246242788,-500.0,0.00010999,2]
[334571677,1723246242797,-500.0,0.00010999,2]